fUST/lending_fUST_20260127
["ID","MTS","AMOUNT","RATE_DAILY","PERIOD"]
[403764769,1769525438134,-500.0,0.00012385,2]
[403764770,1769525438143,-500.0,0.00012385,2]
[403764771,1769525438152,-500.0,0.00012385,2]
[403764772,1769525438161,-500.0,0.00012385,2]
[403764773,1769525438170,-500.0,0.00012385,2]
[403764774,1769525438179,-251.01133672,0.00012385,2]
[403764775,1769525438189,-500.0,0.00012385,2]
[403764776,1769525438198,-300.80255432,0.00012385,2]
[403764777,1769525438207,-500.0,0.00012385,2]
[403764778,1769525438217,-500.0,0.00012385,2]
[403764779,1769525438226,-500.0,0.00012385,2]
[403764780,1769525438236,-500.0,0.00012385,2]
[403764781,1769525438246,-500.0,0.00012385,2]
[403764782,1769525438257,-500.0,0.00012385,2]
[403764783,1769525438267,-500.0,0.00012385,2]
[403764784,1769525438277,-500.0,0.00012385,2]
[403764785,1769525438289,-500.0,0.00012385,2]
[403764786,1769525438299,-262.62873348,0.00012385,2]
[403764787,1769525438309,-500.0,0.00012385,2]
[403764788,1769525438318,-500.0,0.00012385,2]
[403764789,1769525438330,-300.0,0.00012636,2]
[403764790,1769525438339,-300.0,0.00012636,2]
[403764791,1769525438348,-300.0,0.00012636,2]
[403764792,1769525438358,-300.0,0.00012636,2]
[403764793,1769525438367,-300.0,0.00012636,2]
[403764794,1769525438376,-300.0,0.00012636,2]
[403764795,1769525438385,-300.0,0.00012636,2]
[403764796,1769525438394,-300.0,0.00012636,2]
[403764797,1769525438404,-300.0,0.00012636,2]
[403764798,1769525438414,-300.0,0.00012636,2]
[403764799,1769525438424,-300.0,0.00012636,2]
[403764800,1769525438434,-300.0,0.00012636,2]
[403764801,1769525438443,-300.0,0.00012636,2]
[403764802,1769525438453,-300.0,0.00012636,2]
[403764803,1769525438462,-300.0,0.00012636,2]
[403764804,1769525438472,-600.0,0.00012636,2]
[403764805,1769525438481,-507.85476108,0.00012841,2]
[403764806,1769525438491,-175.05414771,0.00013273,2]
[403764807,1769525438500,-500.0,0.00013273,2]
[403764808,1769525438510,-500.0,0.00013273,2]
[403764809,1769525438519,-522.6486575,0.00013273,2]
[403764810,1769525438528,-500.0,0.00013273,2]
[403764811,1769525438538,-500.0,0.00013273,2]
[403764812,1769525438549,-500.0,0.00013273,2]
[403764813,1769525438559,-500.0,0.00013273,2]
[403764814,1769525438568,-500.0,0.00013273,2]
[403764815,1769525438578,-500.0,0.00013273,2]
[403764816,1769525438587,-500.0,0.00013273,2]
[403764817,1769525438596,-500.0,0.00013273,2]
[403764818,1769525438606,-500.0,0.00013273,2]
[403764819,1769525438616,-500.0,0.00013273,2]
[403764820,1769525438626,-268.92510588,0.00013326,2]
[403764821,1769525438635,-420.0,0.0001359,2]
[403764822,1769525438645,-300.0,0.00013673,2]
[403764823,1769525438655,-1000.0,0.00013699,2]
[403764824,1769525438664,-500.0,0.00013699,2]
[403764825,1769525438673,-500.0,0.00013699,2]
[403764826,1769525438683,-500.0,0.00013699,2]
[403764827,1769525438693,-158.6253408,0.00013699,2]
[403764828,1769525438702,-500.0,0.00013699,2]
[403764829,1769525438712,-500.0,0.00013699,2]
[403764830,1769525438722,-538.71956343,0.00013699,2]
[403764831,1769525438732,-225.85977663,0.00013699,2]
[403764832,1769525438741,-1000.0,0.00013821,2]
[403764833,1769525438751,-1000.0,0.00013821,2]
[403764834,1769525438760,-1000.0,0.00013821,2]
[403764835,1769525438770,-1000.0,0.00013821,2]
[403764836,1769525438779,-1000.0,0.00013821,2]
[403764837,1769525438789,-590.03498975,0.00013821,2]
[403764838,1769525438798,-1000.0,0.00013821,2]
[403764839,1769525438808,-1000.0,0.00013821,2]
[403764840,1769525438818,-1000.0,0.00013821,2]
[403764841,1769525438827,-1000.0,0.00013821,2]
[403764842,1769525438837,-948.22561692,0.00013821,2]
[403764843,1769525438846,-1000.0,0.00013821,2]
[403764844,1769525438856,-720.0,0.000139,2]
[403764845,1769525438866,-600.0,0.00014221,2]
[403764846,1769525438875,-1000.0,0.00014247,2]
[403764847,1769525438885,-1000.0,0.00014247,2]
[403764848,1769525438896,-1000.0,0.00014247,2]
[403764849,1769525438906,-1000.0,0.00014247,2]
[403764850,1769525438916,-1000.0,0.00014247,2]
[403764851,1769525438926,-404.44863888,0.00014356,2]
[403764852,1769525438935,-1500.0,0.00014368,2]
[403764853,1769525438945,-1500.0,0.00014368,2]
[403764854,1769525438954,-1500.0,0.00014368,2]
[403764855,1769525438964,-1500.0,0.00014368,2]
[403764856,1769525438974,-1199.84001796,0.00014368,2]
[403764857,1769525438983,-1500.0,0.00014368,2]
[403764858,1769525438993,-1500.0,0.00014368,2]
[403764859,1769525439006,-1500.0,0.00014368,2]
[403764860,1769525439016,-1500.0,0.00014368,2]
[403764861,1769525439026,-1500.0,0.00014368,2]
[403764862,1769525439036,-178.92208645,0.00014472,2]
[403764863,1769525439046,-900.0,0.00014768,2]
[403764864,1769525439057,-1000.0,0.00014795,2]
[403764865,1769525439066,-1500.0,0.00014795,2]
[403764866,1769525439076,-1615.71955138,0.00014795,2]
[403764867,1769525439086,-1000.0,0.00014795,2]
[403764868,1769525439096,-1000.0,0.00014795,2]
[403764869,1769525439105,-487.0,0.00014795,2]
[403764870,1769525439115,-487.0,0.00014795,2]
[403764871,1769525439125,-487.0,0.00014795,2]
[403764872,1769525439135,-487.0,0.00014795,2]
[403764873,1769525439144,-487.0,0.00014795,2]
[403764874,1769525439154,-487.0,0.00014795,2]
[403764875,1769525439164,-487.0,0.00014795,2]
[403764876,1769525439174,-954.64,0.00014795,2]
[403764877,1769525439183,-587.0,0.00014913,2]
[403764878,1769525439193,-1660.41327999,0.00014916,2]
[403764879,1769525439202,-2000.0,0.00014916,2]
[403764880,1769525439211,-2000.0,0.00014916,2]
[403764881,1769525439221,-1206.31303526,0.00014916,2]
[403764882,1769525439233,-793.68696474,0.00014916,2]
[403764883,1769525439243,-2000.0,0.00014916,2]
[403764884,1769525439254,-2000.0,0.00014916,2]
[403764885,1769525439264,-2000.0,0.00014916,2]
[403764887,1769525439274,-1500.0,0.00014916,2]
[403764888,1769525439283,-2000.0,0.00014916,2]
[403764889,1769525439294,-157.40759664,0.00014919,2]
[403764890,1769525439304,-280.650678,0.00015068,2]
[403764892,1769525439313,-315.25,0.0001519,2]
[403764893,1769525439323,-864.0,0.0001529,2]
[403764894,1769525439337,-1218.12397634,0.00015316,2]
[403764895,1769525439346,-727.72467895,0.00015342,2]
[403764896,1769525439355,-1556.86628974,0.00015464,2]
[403764898,1769525439364,-500.0,0.00015464,2]
[403764899,1769525439373,-500.0,0.00015464,2]
[403764900,1769525439382,-500.0,0.00015464,2]
[403764901,1769525439392,-1000.0,0.00015464,2]
[403764903,1769525439401,-2500.0,0.00015464,2]
[403764904,1769525439410,-828.85776734,0.00015464,2]
[403764905,1769525439420,-7835.74488067,0.00015503,2]
[403764906,1769525439429,-1320.32,0.00015559,2]
[403764908,1769525439438,-179.9820018,0.00015898,2]
[403764909,1769525439448,-1000.0,0.00016,2]
[403764910,1769525439457,-1000.0,0.00016012,2]
[403764911,1769525439467,-250.0,0.00016202,2]
[403764913,1769525439476,-466.14419396,0.00016356,2]
[403764914,1769525439485,-823.0,0.00016365,2]
[403764915,1769525439495,-200.0,0.00016438,2]
[403764916,1769525439505,-200.07068234,0.00016473,2]
[403764918,1769525439515,-500.0,0.00016767,2]
[403764919,1769525439524,-500.0,0.00016767,2]
[403764920,1769525439534,-150.0,0.00016767,2]
[403764921,1769525439543,-500.0,0.00016767,2]
[403764923,1769525439552,-500.0,0.00016767,2]
[403764924,1769525439561,-500.0,0.00016767,2]
[403764925,1769525439571,-1000.0,0.00016819,2]
[403764926,1769525439581,-500.0,0.00016904,2]
[403764928,1769525439590,-500.0,0.00016904,2]
[403764929,1769525439600,-150.0,0.00016904,2]
[403764930,1769525439609,-537.45973716,0.00016904,2]
[403764931,1769525439619,-500.0,0.00016904,2]
[403764932,1769525439628,-500.0,0.00016904,2]
[403764934,1769525439638,-1041.66666667,0.00016927,2]
[403764935,1769525439647,-683.56,0.00016961,2]
[403764936,1769525439656,-1000.0,0.00017,2]
[403764937,1769525439665,-470.82635095,0.00017041,2]
[403764939,1769525439675,-500.0,0.00017041,2]
[403764940,1769525439684,-202.55847366,0.00017041,2]
[403764941,1769525439693,-500.0,0.00017041,2]
[403764943,1769525439703,-500.0,0.00017041,2]
[403764944,1769525439711,-500.0,0.00017178,2]
[403764945,1769525439720,-500.0,0.00017178,2]
[403764946,1769525439730,-500.0,0.00017178,2]
[403764947,1769525439740,-500.0,0.00017315,2]
[403764949,1769525439749,-500.0,0.00017315,2]
[403764950,1769525439758,-500.0,0.00017315,2]
[403764951,1769525439767,-500.0,0.00017452,2]
[403764952,1769525439777,-500.0,0.00017452,2]
[403764953,1769525439787,-500.0,0.00017452,2]
[403764955,1769525439796,-1084.87424796,0.00017452,2]
[403764956,1769525439806,-1000.0,0.000175,2]
[403764957,1769525439815,-500.0,0.00017589,2]
[403764958,1769525439825,-500.0,0.00017589,2]
[403764960,1769525439834,-500.0,0.00017589,2]
[403764961,1769525439843,-500.0,0.00017726,2]
[403764962,1769525439852,-500.0,0.00017726,2]
[403764963,1769525439862,-500.0,0.00017726,2]
[403764965,1769525439872,-2319.01334765,0.00017753,2]
[403764966,1769525439884,-6369.32682081,0.00017753,2]
[403764967,1769525439895,-268.23870658,0.00017753,2]
[403764982,1769525440405,-64.14477933,0.00017753,2]
[403764983,1769525440416,-4562.45270198,0.00017753,2]
[403765008,1769525443198,-1801.68545912,0.00017753,2]
[403765015,1769525446234,-5000.0,0.00017575,2]
[403765016,1769525446245,-386.55038793,0.00017753,2]
[403765017,1769525446256,-1367.12,0.00017769,2]
[403765018,1769525446266,-347.5977454,0.00017797,2]
[403765019,1769525446275,-34058.17860591,0.00017797,2]
[403765020,1769525446548,-30118.73676749,0.00017797,2]
[403765021,1769525446558,-872.7015875,0.00017797,2]
[403765022,1769525446567,-500.0,0.00017863,2]
[403765023,1769525446576,-500.0,0.00017863,2]
[403765024,1769525446585,-500.0,0.00017863,2]
[403765025,1769525446594,-160.0,0.00017887,3]
[403765026,1769525446603,-1152.0,0.00017958,2]
[403765027,1769525446612,-500.0,0.00018,2]
[403765028,1769525446621,-605.45611552,0.00018,2]
[403765029,1769525446630,-500.0,0.00018137,2]
[403765030,1769525446639,-527.83974904,0.00018356,2]
[403765031,1769525446648,-729.0,0.000184,2]
[403765032,1769525446658,-729.0,0.000184,2]
[403765033,1769525446667,-280.650678,0.00018493,2]
[403765034,1769525446676,-1000.0,0.00018501,2]
[403765035,1769525446685,-244.0,0.00018501,2]
[403765036,1769525446696,-2050.69,0.00018547,2]
[403765037,1769525446705,-729.0,0.0001872,2]
[403765038,1769525446715,-729.0,0.0001872,2]
[403765039,1769525446724,-729.0,0.0001872,2]
[403765040,1769525446733,-7835.74488067,0.00018721,2]
[403765041,1769525446742,-303.10001603,0.000189,2]
[403765042,1769525446751,-303.10001603,0.000189,2]
[403765043,1769525446760,-38905.75721698,0.00019,2]
[403765044,1769525446770,-30000.0,0.00019023,2]
[403765046,1769525446780,-151.0,0.00019023,2]
[403765047,1769525446789,-151.0,0.00019023,2]
[403765048,1769525446799,-151.0,0.00019023,2]
[403765050,1769525446808,-151.0,0.00019023,2]
[403765051,1769525446818,-151.0,0.00019023,2]
[403765053,1769525446827,-151.0,0.00019023,2]
[403765055,1769525446836,-162.380719,0.00019023,2]
[403765056,1769525446845,-151.0,0.00019023,2]
[403765057,1769525446855,-151.0,0.00019023,2]
[403765058,1769525446864,-151.0,0.00019023,2]
[403765059,1769525446873,-151.0,0.00019023,2]
[403765060,1769525446882,-151.0,0.00019023,2]
[403765061,1769525446892,-201.93286099,0.00019023,2]
[403765062,1769525446901,-151.0,0.00019023,2]
[403765063,1769525446912,-500.0,0.00019023,2]
[403765064,1769525446921,-160.0,0.00019023,2]
[403765065,1769525446930,-209.40437684,0.00019023,2]
[403765066,1769525446940,-151.0,0.00019023,2]
[403765067,1769525446949,-395.72,0.00019023,2]
[403765068,1769525446959,-160.0,0.00019023,2]
[403765069,1769525446968,-668.65185757,0.00019023,2]
[403765070,1769525446977,-217.15233878,0.00019023,2]
[403765071,1769525446986,-151.0,0.00019023,2]
[403765072,1769525446995,-225.18697532,0.00019023,2]
[403765073,1769525447006,-164.81135061,0.00019023,2]
[403765074,1769525447015,-233.51889341,0.00019023,2]
[403765075,1769525447024,-242.15909246,0.00019023,2]
[403765076,1769525447034,-251.11897888,0.00019023,2]
[403765077,1769525447043,-260.4103811,0.00019023,2]
[403765078,1769525447052,-160.0,0.00019023,2]
[403765079,1769525447062,-270.0455652,0.00019023,2]
[403765080,1769525447071,-278.15468107,0.00019023,2]
[403765081,1769525447080,-280.03725112,0.00019023,2]
[403765082,1769525447091,-290.39862941,0.00019023,2]
[403765083,1769525447101,-301.1433787,0.00019023,2]
[403765084,1769525447111,-2674.60743027,0.00019023,2]
[403765085,1769525447120,-250.0,0.00019023,2]
[403765086,1769525447129,-250.0,0.00019023,2]
[403765087,1769525447138,-250.0,0.00019023,2]
[403765088,1769525447147,-250.0,0.00019023,2]
[403765089,1769525447156,-151.0,0.00019023,2]
[403765090,1769525447165,-250.0,0.00019023,2]
[403765091,1769525447175,-151.0,0.00019023,2]
[403765092,1769525447183,-324.25448447,0.00019023,2]
[403765093,1769525447192,-151.0,0.00019023,2]
[403765094,1769525447201,-151.0,0.00019023,2]
[403765095,1769525447211,-1957.856,0.00019023,2]
[403765096,1769525447222,-729.0,0.0001904,2]
[403765097,1769525447232,-729.0,0.0001904,2]
[403765098,1769525447240,-729.0,0.0001904,2]
[403765099,1769525447253,-2030.296672,0.00019078,2]
[403765100,1769525447263,-303.10001612,0.00019089,2]
[403765101,1769525447273,-303.10001603,0.00019089,2]
[403765102,1769525447285,-1118.09358773,0.00019133,2]
[403765103,1769525447297,-1269.957,0.00019178,2]
[403765104,1769525447307,-1269.957,0.00019178,2]
[403765105,1769525447316,-591.39,0.00019178,2]
[403765106,1769525447327,-2539.91,0.00019178,2]
[403765107,1769525447337,-469.96,0.00019178,2]
[403765108,1769525447347,-1000.0,0.00019178,2]
[403765109,1769525447355,-160.0,0.0001918,4]
[403765110,1769525447367,-7651.0,0.000192,2]
[403765111,1769525447377,-168.94,0.000192,2]
[403765112,1769525447387,-168.11,0.000192,2]
[403765113,1769525447398,-310.8,0.000192,2]
[403765114,1769525447408,-303.10001603,0.00019278,2]
[403765115,1769525447417,-157.69654565,0.00019288,30]
[403765116,1769525447427,-1000.0,0.00019298,5]
[403765117,1769525447438,-2734.25,0.00019353,2]
[403765118,1769525447447,-729.0,0.0001936,2]
[403765119,1769525447457,-729.0,0.0001936,2]
[403765120,1769525447468,-729.0,0.0001936,2]
[403765121,1769525447479,-729.0,0.0001936,2]
[403765122,1769525447489,-1372.504,0.00019388,2]
[403765123,1769525447498,-670.086,0.00019388,2]
[403765124,1769525447508,-2155.187,0.00019388,2]
[403765125,1769525447518,-150.277,0.00019388,2]
[403765126,1769525447527,-303.10001603,0.00019467,2]
[403765127,1769525447537,-247.194,0.00019495,2]
[403765128,1769525447546,-168.0,0.00019509,2]
[403765129,1769525447555,-157.69654565,0.00019534,30]
[403765130,1769525447565,-168.0,0.00019565,2]
[403765131,1769525447574,-31110.0,0.00019571,2]
[403765132,1769525447584,-693.3919763,0.00019571,2]
[403765133,1769525447593,-2773.56790519,0.00019571,2]
[403765134,1769525447602,-1199.60167607,0.00019576,2]
[403765135,1769525447612,-1269.957,0.00019589,3]
[403765136,1769525447622,-84986.96776624,0.000196,2]
[403765137,1769525447636,-678.749689,0.000196,2]
[403765206,1769525512977,151.78,0.00030137,120]
[403765258,1769525619172,500.0,0.0003487,120]
[403765259,1769525619405,169.5,0.0003487,120]
[403765262,1769525624680,500.0,0.0003487,120]
[403765269,1769525635670,427.47218194,0.0003487,120]
[403765278,1769525648583,400.85759121,0.0003487,120]
[403765281,1769525654161,500.0,0.0003487,120]
[403765289,1769525678502,500.0,0.0003487,120]
[403765291,1769525680193,500.0,0.0003487,120]
[403765292,1769525689537,500.0,0.0003487,120]
[403765293,1769525691192,500.0,0.0003487,120]
[403765294,1769525691379,500.0,0.0003487,120]
[403765295,1769525694368,500.0,0.0003487,120]
[403765296,1769525698884,500.0,0.0003487,120]
[403765301,1769525704227,500.0,0.0003487,120]
[403765304,1769525711825,500.0,0.0003487,120]
[403765305,1769525712267,500.0,0.0003487,120]
[403765306,1769525712537,152.04,0.0003487,120]
[403765307,1769525725321,500.0,0.0003487,120]
[403765308,1769525729573,500.0,0.0003487,120]
[403765309,1769525731243,467.28300572,0.0003487,120]
[403765321,1769525734272,500.0,0.0003487,120]
[403765328,1769525736699,500.0,0.0003487,120]
[403765329,1769525736811,500.0,0.0003487,120]
[403765355,1769525747508,500.0,0.0003487,120]
[403765356,1769525747814,500.0,0.0003487,120]
[403765371,1769525756620,500.0,0.0003487,120]
[403765373,1769525761104,500.0,0.0003487,120]
[403765375,1769525762276,270.46618021,0.00030136,120]
[403765376,1769525765199,500.0,0.0003487,120]
[403765377,1769525766277,500.0,0.0003487,120]
[403765378,1769525767761,500.0,0.0003487,120]
[403765379,1769525768286,500.0,0.0003487,120]
[403765386,1769525775191,500.0,0.0003487,120]
[403765387,1769525776592,500.0,0.0003487,120]
[403765388,1769525776883,239.95,0.0003487,120]
[403765389,1769525777530,500.0,0.0003487,120]
[403765390,1769525780018,500.0,0.0003487,120]
[403765392,1769525783228,500.0,0.0003487,120]
[403765393,1769525783343,500.0,0.0003487,120]
[403765395,1769525788908,500.0,0.0003487,120]
[403765396,1769525793713,500.0,0.0003487,120]
[403765397,1769525798776,500.0,0.0003487,120]
[403765398,1769525805559,500.0,0.0003487,120]
[403765399,1769525811517,500.0,0.0003487,120]
[403765400,1769525813186,500.0,0.0003487,120]
[403765401,1769525814713,500.0,0.0003487,120]
[403765402,1769525818207,500.0,0.0003487,120]
[403765404,1769525822840,500.0,0.0003487,120]
[403765406,1769525825994,400.0,0.0003487,120]
[403765407,1769525827475,500.0,0.0003487,120]
[403765408,1769525829786,500.0,0.0003487,120]
[403765412,1769525832390,253.72004862,0.0003487,120]
[403765413,1769525832599,500.0,0.0003487,120]
[403765458,1769525841098,500.0,0.0003487,120]
[403765472,1769525846689,500.0,0.0003487,120]
[403765473,1769525847460,500.0,0.0003487,120]
[403765474,1769525850084,500.0,0.0003487,120]
[403765475,1769525852489,500.0,0.0003487,120]
[403765476,1769525852820,263.5610575,0.0003487,120]
[403765493,1769525862982,500.0,0.0003487,120]
[403765494,1769525866153,500.0,0.0003487,120]
[403765495,1769525866839,507.1665842,0.0003487,120]
[403765498,1769525874320,500.0,0.0003487,120]
[403765509,1769525889248,521.25834785,0.0003487,120]
[403765510,1769525893793,500.0,0.0003487,120]
[403765511,1769525895262,500.0,0.0003487,120]
[403765512,1769525897062,500.0,0.0003487,120]
[403765520,1769525909781,500.0,0.0003487,120]
[403765525,1769525926223,500.0,0.0003487,120]
[403765526,1769525926620,500.0,0.0003487,120]
[403765527,1769525926857,200.0,0.0003487,120]
[403765531,1769525946648,500.0,0.0003487,120]
[403765532,1769525949702,500.0,0.0003487,120]
[403765539,1769525993921,500.0,0.0003487,120]
[403765540,1769526000469,626.98873034,0.0003487,120]
[403765547,1769526013996,500.0,0.0003487,120]
[403765549,1769526043932,500.0,0.00034921,120]
[403765550,1769526045404,323.54498391,0.00034921,120]
[403765551,1769526047306,500.0,0.00034921,120]
[403765552,1769526049584,500.0,0.00034921,120]
[403765553,1769526054798,500.0,0.00034921,120]
[403765555,1769526071128,500.0,0.00034921,120]
[403765562,1769526084973,500.0,0.00034921,120]
[403765563,1769526087002,500.0,0.00034921,120]
[403765564,1769526087190,500.0,0.00034921,120]
[403765565,1769526093514,500.0,0.00034921,120]
[403765566,1769526097373,500.0,0.00034921,120]
[403765567,1769526099163,500.0,0.00034921,120]
[403765568,1769526101707,500.0,0.00034921,120]
[403765569,1769526101955,500.0,0.00034921,120]
[403765570,1769526115760,500.0,0.00034921,120]
[403765573,1769526122517,500.0,0.00034921,120]
[403765575,1769526124390,500.0,0.00034921,120]
[403765576,1769526124495,500.0,0.00034921,120]
[403765579,1769526128028,500.0,0.00034921,120]
[403765580,1769526128131,500.0,0.00034921,120]
[403765587,1769526134232,500.0,0.00034921,120]
[403765588,1769526134416,500.0,0.00034921,120]
[403765590,1769526137331,500.0,0.00034921,120]
[403765592,1769526139109,500.0,0.00034921,120]
[403765602,1769526144042,500.0,0.00034921,120]
[403765632,1769526157126,500.0,0.00034921,120]
[403765633,1769526158951,500.0,0.00034921,120]
[403765645,1769526167164,500.0,0.00034921,120]
[403765648,1769526168682,500.0,0.00034921,120]
[403765652,1769526172252,500.0,0.00034921,120]
[403765653,1769526172400,500.0,0.00034921,120]
[403765661,1769526177243,500.0,0.00034921,120]
[403765670,1769526182649,500.0,0.00034921,120]
[403765672,1769526187815,500.0,0.00034921,120]
[403765673,1769526189442,500.0,0.00034921,120]
[403765674,1769526190027,500.0,0.00034921,120]
[403765675,1769526192964,500.0,0.00034921,120]
[403765676,1769526194043,160.0,0.000301,120]
[403765701,1769526199913,500.0,0.00034921,120]
[403765704,1769526202743,258.58014358,0.00034921,120]
[403765707,1769526207846,500.0,0.00034921,120]
[403765709,1769526210144,500.0,0.00034921,120]
[403765712,1769526211634,500.0,0.00034921,120]
[403765713,1769526212113,500.0,0.00034921,120]
[403765718,1769526217413,165.12847886,0.00034921,120]
[403765721,1769526222204,480.63103963,0.00034921,120]
[403765722,1769526222554,500.0,0.00034921,120]
[403765723,1769526223685,500.0,0.00034921,120]
[403765725,1769526225869,500.0,0.00034921,120]
[403765727,1769526228422,500.0,0.00034921,120]
[403765728,1769526229822,500.0,0.00034921,120]
[403765729,1769526233915,500.0,0.00034921,120]
[403765730,1769526238262,500.0,0.00034921,120]
[403765732,1769526240874,500.0,0.00034921,120]
[403765733,1769526244093,500.0,0.00034921,120]
[403765734,1769526245873,500.0,0.00034921,120]
[403765735,1769526247984,514.44973455,0.00034921,120]
[403765736,1769526251863,500.0,0.00034921,120]
[403765737,1769526260261,513.18569157,0.00034921,120]
[403765738,1769526260811,500.0,0.00034921,120]
[403765739,1769526262124,500.0,0.00034921,120]
[403765740,1769526267497,500.0,0.00034921,120]
[403765741,1769526268037,500.0,0.00034921,120]
[403765742,1769526275967,311.73773655,0.00034921,120]
[403765744,1769526306069,500.0,0.00034921,120]
[403765745,1769526311197,500.0,0.00034921,120]
[403765746,1769526331978,500.28840869,0.00034926,120]
[403765747,1769526337195,500.0,0.00034926,120]
[403765748,1769526348464,500.0,0.00034926,120]
[403765749,1769526350478,318.16282307,0.00034926,120]
[403765750,1769526353845,500.0,0.00034926,120]
[403765751,1769526357150,500.0,0.00034926,120]
[403765752,1769526365187,500.0,0.00034926,120]
[403765753,1769526366907,500.0,0.00034926,120]
[403765754,1769526367973,500.0,0.00034926,120]
[403765755,1769526369803,500.0,0.00034926,120]
[403765756,1769526371616,504.04894012,0.00034926,120]
[403765757,1769526373483,500.0,0.00034926,120]
[403765758,1769526375300,500.0,0.00034926,120]
[403765759,1769526377139,501.30058826,0.00034926,120]
[403765760,1769526378664,161.0,0.000301,120]
[403765761,1769526382489,501.22276136,0.00034926,120]
[403765762,1769526384200,500.0,0.00034926,120]
[403765763,1769526388146,500.0,0.00034926,120]
[403765764,1769526388918,500.0,0.00034926,120]
[403765765,1769526393617,500.0,0.00034926,120]
[403765766,1769526397997,500.0,0.00034926,120]
[403765767,1769526401118,500.0,0.00034926,120]
[403765770,1769526408493,500.0,0.00034926,120]
[403765772,1769526409771,500.0,0.00034926,120]
[403765776,1769526415708,500.0,0.00034926,120]
[403765790,1769526417774,500.0,0.00034926,120]
[403765873,1769526421814,500.0,0.00034926,120]
[403765874,1769526422897,500.0,0.00034926,120]
[403765875,1769526425742,500.0,0.00034926,120]
[403765876,1769526427423,500.0,0.00034926,120]
[403765877,1769526431534,500.0,0.00034926,120]
[403765879,1769526435131,-221.25507741,0.0001228,2]
[403765880,1769526435153,-182.99,0.00012329,2]
[403765881,1769526435174,-152.49,0.00012329,2]
[403765882,1769526435194,-205.18724816,0.00012329,2]
[403765884,1769526436180,500.0,0.00034926,120]
[403765885,1769526437333,500.0,0.00034926,120]
[403765886,1769526439513,500.0,0.00034926,120]
[403765887,1769526441293,500.0,0.00034926,120]
[403765888,1769526443117,500.0,0.00034926,120]
[403765889,1769526443557,500.0,0.00034926,120]
[403765890,1769526446479,500.0,0.00034926,120]
[403765891,1769526450701,500.0,0.00034926,120]
[403765892,1769526455169,500.0,0.00034926,120]
[403765893,1769526455760,500.0,0.00034926,120]
[403765894,1769526456885,500.0,0.00034926,120]
[403765895,1769526460237,500.0,0.00034926,120]
[403765896,1769526460749,500.0,0.00034926,120]
[403765897,1769526467808,500.0,0.00034926,120]
[403765898,1769526467925,500.0,0.00034926,120]
[403765899,1769526472458,500.0,0.00034926,120]
[403765900,1769526474140,500.0,0.00034926,120]